bitfinex-derivatives/quotes_SOLF0:USTF0_20260306
["timestamp","ask_amount","ask_price","bid_price","bid_amount"]
[1772776122349,13.30198967,87.64,87.591,3.8272673]
[1772776123253,3.03398967,87.63,87.591,3.8272673]
[1772776123854,2.78035799,87.639,87.591,3.8272673]
[1772776124055,2.78035799,87.649,87.6,3.03398967]
[1772776124456,2.78035799,87.649,87.6,6.86125697]
[1772776124655,2.78035799,87.649,87.6,3.8272673]
[1772776125756,2.79554198,87.635,87.587,3.8272673]
[1772776126250,5.82953165,87.61,87.561,3.8272673]
[1772776126553,2.79554198,87.61,87.561,3.8272673]
[1772776127747,2.79554198,87.61,87.565,3.8272673]
[1772776128555,2.79554198,87.61,87.567,3.8272673]
[1772776130257,2.79554198,87.61,87.569,3.8272673]
[1772776130557,2.79554198,87.61,87.57,3.03398967]
[1772776130949,2.79554198,87.61,87.57,6.86125697]
[1772776132349,2.7893224,87.616,87.571,3.8272673]
[1772776133053,10.272,87.613,87.571,3.8272673]
[1772776133250,2.7893224,87.616,87.571,3.8272673]
[1772776135857,10.271,87.615,87.571,3.8272673]
[1772776136062,2.67579648,87.614,87.571,3.8272673]
[1772776138263,3.03398967,87.61,87.571,3.8272673]
[1772776139864,2.68178301,87.609,87.571,3.8272673]
[1772776140065,2.68178301,87.609,87.55,3.03398967]
[1772776140266,2.68178301,87.609,87.551,3.97879477]
[1772776140861,10.272,87.608,87.551,3.97879477]
[1772776141067,2.67749052,87.607,87.551,3.97879477]
[1772776141968,2.67749052,87.607,87.557,3.97879477]
[1772776142467,2.67749052,87.606,87.557,3.97879477]
[1772776142861,2.67748121,87.599,87.557,3.97879477]
[1772776143067,2.67748121,87.589,87.544,3.97879477]
[1772776146468,3.03398967,87.58,87.544,3.97879477]
[1772776147073,2.58140319,87.585,87.544,3.97879477]
[1772776147273,3.03398967,87.58,87.544,3.97879477]
[1772776147674,2.58140319,87.585,87.544,3.97879477]
[1772776149676,2.6592639,87.569,87.508,3.97879477]
[1772776149877,2.6592639,87.579,87.521,3.97879477]
[1772776150072,3.03398967,87.59,87.541,3.97879477]
[1772776151881,3.03398967,87.59,87.543,3.97879477]
[1772776152482,3.03418007,87.59,87.543,3.97879477]
[1772776153579,3.03418007,87.59,87.546,3.97879477]
[1772776153777,20.536,87.644,87.546,3.97879477]
[1772776153778,2.81731903,87.599,87.546,3.97879477]
[1772776154282,3.03418007,87.59,87.546,3.97879477]
[1772776154781,3.03418007,87.59,87.549,10.279]
[1772776155182,3.03418007,87.59,87.546,3.97879477]
[1772776156185,2.81731903,87.599,87.55,3.03418007]
[1772776156380,2.81731903,87.599,87.551,3.97879477]
[1772776156575,5.97339316,87.57,87.521,3.97879477]
[1772776157781,5.97339316,87.57,87.524,3.97879477]
[1772776158882,5.97339316,87.57,87.526,3.97879477]
[1772776159477,2.93921309,87.57,87.526,3.97879477]
[1772776159784,2.93710576,87.583,87.531,3.97879477]
[1772776160389,2.93710576,87.579,87.521,3.97879477]
[1772776160590,2.93710576,87.569,87.521,3.97879477]
[1772776161186,5.72189809,87.56,87.521,3.97879477]
[1772776161685,2.68771802,87.558,87.501,3.97879477]
[1772776162881,2.70538337,87.555,87.501,3.97879477]
[1772776163083,2.70538337,87.555,87.503,3.97879477]
[1772776163291,2.70538337,87.555,87.511,3.97879477]
[1772776163491,3.03418007,87.56,87.511,3.97879477]
[1772776163785,2.70538337,87.568,87.521,3.97879477]
[1772776163992,2.70538337,87.559,87.521,3.97879477]
[1772776164391,2.70538337,87.559,87.513,10.283]
[1772776164589,2.70538337,87.54,87.494,3.97879477]
[1772776165192,12.98538337,87.54,87.494,3.97879477]
[1772776165589,2.70054183,87.539,87.494,3.97879477]
[1772776166993,13.31318007,87.55,87.501,3.97879477]
[1772776167189,2.82660337,87.549,87.501,3.97879477]
[1772776169690,13.31218007,87.56,87.502,3.70287461]
[1772776169898,10.278,87.56,87.511,3.70287461]
[1772776170293,10.278,87.554,87.511,3.70287461]
[1772776170590,2.82422202,87.553,87.511,3.70287461]
[1772776171793,10.279,87.551,87.511,3.70287461]
[1772776172292,10.278,87.559,87.511,3.70287461]
[1772776172899,13.11048463,87.559,87.511,3.70287461]
[1772776173801,13.11048463,87.559,87.513,3.85421964]
[1772776174299,2.83248463,87.556,87.501,3.85421964]
[1772776174499,2.83248463,87.549,87.501,3.85421964]
[1772776174698,2.83248463,87.539,87.487,3.85421964]
[1772776174900,2.82874331,87.536,87.487,3.85421964]
[1772776175892,13.10974331,87.533,87.487,3.85421964]
[1772776176092,2.82874331,87.529,87.474,3.85421964]
[1772776177401,13.23267666,87.523,87.48,3.03418007]
[1772776177602,2.95067666,87.522,87.474,3.85421964]
[1772776179699,2.95067666,87.522,87.48,3.03418007]
[1772776180402,2.95067666,87.522,87.471,10.288]
[1772776180403,2.97360102,87.519,87.461,3.85421964]
[1772776180605,2.97360102,87.518,87.461,3.85421964]
[1772776180906,3.03418007,87.53,87.481,3.85421964]
[1772776181102,2.9630564,87.537,87.49,3.03418007]
[1772776182508,2.9630564,87.537,87.481,3.85421964]
[1772776183314,2.9630564,87.537,87.484,3.85421964]
[1772776184006,2.9630564,87.537,87.486,3.85421964]
[1772776184208,3.03802729,87.549,87.491,3.85421964]
[1772776185907,3.03802729,87.549,87.5,6.88839971]
[1772776186104,3.37887965,87.579,87.521,3.85421964]
[1772776187107,6.43042034,87.57,87.521,3.85421964]
[1772776187308,10.5144419,87.615,87.479,20.575]
[1772776187309,3.39624027,87.583,87.531,3.85421964]
[1772776187608,3.39624027,87.583,87.54,3.03418007]
[1772776187808,3.39624027,87.583,87.531,3.85421964]
[1772776188805,3.39624027,87.583,87.535,10.28]
[1772776189710,3.39624027,87.583,87.54,10.28]
[1772776189917,3.43020718,87.597,87.55,3.03418007]
[1772776190213,3.43020718,87.609,87.56,3.03418007]
[1772776192012,10.272,87.607,87.56,3.03418007]
[1772776192208,3.68312375,87.606,87.56,3.03418007]
[1772776192413,3.68312375,87.604,87.555,10.278]
[1772776192711,3.68312375,87.599,87.555,10.278]
[1772776195316,3.68312375,87.579,87.503,3.85421964]
[1772776195612,3.03418007,87.57,87.521,3.85421964]
[1772776197118,3.03418007,87.57,87.524,10.282]
[1772776197417,6.71730382,87.57,87.524,10.282]
[1772776199115,3.68312375,87.559,87.507,3.85421964]
[1772776199418,3.68312375,87.559,87.51,3.03418007]
[1772776199618,3.03418007,87.55,87.51,10.283]
[1772776199820,3.68312375,87.549,87.51,10.283]
[1772776200221,3.68312375,87.549,87.507,3.85421964]
[1772776200418,3.68312375,87.549,87.501,10.285]
[1772776200721,3.03418007,87.54,87.501,10.285]
[1772776201023,3.68312375,87.549,87.501,10.285]
[1772776201419,3.03418007,87.56,87.504,3.93348062]
[1772776201625,3.93458174,87.564,87.455,160.072]
[1772776201626,3.93458174,87.564,87.511,3.93348062]
[1772776202222,3.03418007,87.55,87.511,3.93348062]
[1772776202620,3.03418007,87.54,87.509,10.284]
[1772776204030,3.03418007,87.54,87.497,3.93348062]
[1772776205130,3.93458174,87.539,87.497,3.93348062]
[1772776205820,3.93458174,87.539,87.498,10.285]
[1772776206222,3.03418007,87.55,87.501,3.93348062]
[1772776207530,3.93458174,87.553,87.506,3.93348062]
[1772776208627,3.72805393,87.567,87.512,3.93348062]
[1772776209531,3.03418007,87.56,87.512,3.93348062]
[1772776209927,3.03418007,87.56,87.51,3.03418007]
[1772776209928,3.03418007,87.54,87.498,3.93348062]
[1772776210232,6.77847829,87.54,87.498,3.93348062]
[1772776210429,6.77847829,87.54,87.499,10.285]
[1772776211835,6.77847829,87.54,87.499,14.21848062]
[1772776212034,6.77847829,87.54,87.499,3.93348062]
[1772776214434,6.78169046,87.54,87.499,3.93348062]
[1772776215438,3.76768758,87.539,87.499,3.93348062]
[1772776215940,3.76768758,87.539,87.503,10.284]
[1772776222645,3.76768758,87.539,87.499,3.93348062]
[1772776224146,3.76768758,87.539,87.501,10.285]
[1772776224948,3.76768758,87.539,87.502,3.93348062]
[1772776225143,3.76768758,87.539,87.505,10.284]
[1772776226149,10.279,87.549,87.506,3.93348062]
[1772776226748,13.98527118,87.549,87.506,3.93348062]
[1772776226951,3.70627118,87.548,87.506,3.93348062]
[1772776229548,3.03739224,87.56,87.512,3.93348062]
[1772776229749,6.74499173,87.56,87.512,3.93348062]
[1772776230046,3.03739224,87.57,87.521,3.92192535]
[1772776230352,3.66743556,87.572,87.524,3.92192535]
[1772776230546,3.66743556,87.572,87.531,3.92192535]
[1772776231154,3.66743556,87.559,87.513,3.92192535]
[1772776232852,3.66743556,87.557,87.513,3.92192535]
[1772776234052,6.7048278,87.57,87.515,3.92192535]
[1772776234746,6.7048278,87.57,87.521,3.92192535]
[1772776234944,6.7048278,87.57,87.52,3.03739224]
[1772776234945,3.66743556,87.569,87.53,3.92192535]
[1772776235147,3.03739224,87.58,87.531,3.92192535]
[1772776235555,3.66743556,87.583,87.531,3.92192535]
[1772776235949,3.03739224,87.58,87.531,3.92192535]
[1772776236150,3.03739224,87.57,87.531,3.92192535]
[1772776236354,3.66743556,87.569,87.52,3.92192535]
[1772776237054,3.66743556,87.569,87.521,10.282]
[1772776237253,3.66743556,87.569,87.521,14.20392535]
[1772776237755,10.277,87.565,87.521,14.20392535]
[1772776237954,3.66743556,87.569,87.521,14.20392535]
[1772776238157,3.03739224,87.56,87.521,14.20392535]
[1772776238653,3.03739224,87.56,87.521,3.92192535]
[1772776240250,8.5588898,87.568,87.521,3.92192535]
[1772776240555,3.66743556,87.579,87.531,3.92192535]
[1772776240755,8.55984902,87.578,87.531,3.92192535]
[1772776240952,3.03739224,87.57,87.531,3.92192535]
[1772776241248,3.66743556,87.569,87.531,3.92192535]
[1772776241454,10.277,87.568,87.531,3.92192535]
[1772776241649,3.66743556,87.569,87.531,3.92192535]
[1772776243149,3.03739224,87.57,87.531,3.92192535]
[1772776243457,10.49023608,87.597,87.532,3.92192535]
[1772776243458,3.66743556,87.577,87.532,3.92192535]
[1772776243756,8.56157995,87.576,87.532,3.92192535]
[1772776243957,3.66743556,87.577,87.532,3.92192535]
[1772776244650,13.94143556,87.588,87.536,3.92192535]
[1772776244852,3.03739224,87.58,87.536,3.92192535]
[1772776245756,13.31239224,87.58,87.536,3.92192535]
[1772776246355,3.66743556,87.579,87.536,3.92192535]
[1772776246556,3.03739224,87.57,87.536,3.92192535]
[1772776247058,3.66743556,87.579,87.537,10.28]
[1772776247559,3.66743556,87.579,87.536,3.92192535]
[1772776247859,3.03739224,87.57,87.536,3.92192535]
[1772776252158,10.277,87.569,87.536,3.92192535]
[1772776252461,3.03739224,87.57,87.536,3.92192535]
[1772776253257,3.03739224,87.59,87.536,3.92192535]
[1772776253461,3.03739224,87.59,87.541,3.92192535]
[1772776253656,3.66743556,87.603,87.561,3.92192535]
[1772776254168,3.66743556,87.619,87.561,3.92192535]
[1772776254463,3.66743556,87.619,87.58,3.92192535]
[1772776257066,3.03739224,87.62,87.58,3.92192535]
[1772776257258,3.66743556,87.619,87.572,10.276]
[1772776257463,3.03739224,87.61,87.572,10.276]
[1772776258465,3.03739224,87.61,87.567,3.92192535]
[1772776260366,3.03739224,87.6,87.562,10.277]
[1772776260868,6.70362513,87.6,87.554,3.88947676]
[1772776261065,3.03739224,87.58,87.54,3.88947676]
[1772776262775,3.03739224,87.58,87.541,10.28]
[1772776262962,3.03739224,87.58,87.542,3.88947676]
[1772776263168,3.66623289,87.589,87.542,3.88947676]
[1772776264767,3.03739224,87.58,87.542,3.88947676]
[1772776265874,3.03739224,87.58,87.543,3.88947676]
[1772776266074,13.94023289,87.589,87.543,3.88947676]
[1772776267182,3.66623289,87.588,87.543,3.88947676]
[1772776267377,10.275,87.585,87.543,3.88947676]
[1772776268576,3.66623289,87.588,87.543,3.88947676]
[1772776269275,19.56455408,87.627,87.487,20.573]
[1772776269276,3.03739224,87.6,87.547,3.88947676]
[1772776269470,3.03739224,87.6,87.55,3.03739224]
[1772776269672,3.03739224,87.6,87.551,3.88947676]
[1772776269872,3.66623289,87.608,87.55,3.03739224]
[1772776269873,3.66623289,87.608,87.553,3.88947676]
[1772776270671,3.03739224,87.6,87.553,3.88947676]
[1772776271773,3.03739224,87.6,87.554,10.278]
[1772776271974,3.03739224,87.6,87.555,3.88947676]
[1772776272575,3.03739224,87.6,87.557,3.88947676]
[1772776273773,3.03739224,87.6,87.558,10.278]
[1772776273976,3.03739224,87.6,87.558,14.16747676]
[1772776274976,10.273,87.599,87.558,3.88947676]
[1772776275176,13.93923289,87.599,87.558,3.88947676]
[1772776275879,3.66623289,87.598,87.558,3.88947676]
[1772776276682,3.03355417,87.59,87.548,10.279]
[1772776276881,3.03355417,87.59,87.548,14.16847676]
[1772776277182,3.03355417,87.59,87.549,3.88947676]
[1772776277680,3.66623289,87.595,87.549,3.88947676]
[1772776279278,10.274,87.594,87.549,3.88947676]
[1772776279479,13.94023289,87.594,87.549,3.88947676]
[1772776280781,3.03355417,87.59,87.549,3.88947676]
[1772776282883,3.66623289,87.594,87.549,3.88947676]
[1772776283386,3.66623289,87.594,87.55,3.88947676]
[1772776284284,10.274,87.593,87.55,3.88947676]
[1772776285088,10.275,87.581,87.55,3.88947676]
[1772776285282,3.03355417,87.58,87.531,3.88947676]
[1772776285585,6.69978706,87.58,87.531,3.88947676]
[1772776286786,6.69978706,87.58,87.532,3.88947676]
[1772776287087,3.66623289,87.58,87.532,3.88947676]
[1772776287889,3.66623289,87.58,87.537,3.88947676]
[1772776288887,3.66623289,87.58,87.54,3.88947676]
[1772776289591,10.274,87.589,87.54,3.88947676]
[1772776289890,10.274,87.589,87.542,3.88947676]
[1772776290691,10.274,87.589,87.544,3.74553926]
[1772776291490,3.66623289,87.592,87.546,3.74553926]
[1772776291785,3.66623289,87.592,87.551,3.74553926]
[1772776292181,3.03355417,87.6,87.551,3.74553926]
[1772776292786,3.69835858,87.598,87.551,3.74553926]
[1772776293891,3.69835858,87.594,87.551,3.74553926]
[1772776294085,3.69835858,87.589,87.551,3.74553926]
[1772776297391,10.274,87.593,87.551,3.74553926]
[1772776297788,10.274,87.59,87.551,3.74553926]
[1772776298091,13.98731796,87.59,87.551,3.74553926]
[1772776298288,3.71331796,87.569,87.523,3.74553926]
[1772776298492,3.71331796,87.569,87.466,35.36594781]
[1772776298493,3.71331796,87.556,87.511,3.74553926]
[1772776299794,10.278,87.554,87.511,3.74553926]
[1772776301090,3.71331796,87.556,87.513,3.74553926]
[1772776301397,3.03355417,87.56,87.513,3.74553926]
[1772776302891,3.03355417,87.56,87.515,3.74553926]
[1772776303293,10.277,87.564,87.515,3.74553926]
[1772776303792,10.277,87.564,87.51,3.03355417]
[1772776303793,10.277,87.564,87.518,3.74553926]
[1772776303997,3.46618021,87.568,87.52,3.03355417]
[1772776304196,3.46618021,87.568,87.521,3.74553926]
[1772776304397,6.47853061,87.58,87.53,3.03355417]
[1772776304594,10.276,87.579,87.531,3.74553926]
[1772776304796,14.07323602,87.579,87.531,3.74553926]
[1772776304995,3.79723602,87.578,87.531,3.74553926]
[1772776305400,3.79723602,87.569,87.531,3.74553926]
[1772776305700,3.79723602,87.596,87.541,3.74553926]
[1772776305899,3.79723602,87.594,87.54,3.03355417]
[1772776306199,3.79723602,87.589,87.54,6.77909343]
[1772776306399,3.79723602,87.587,87.54,6.77909343]
[1772776306898,3.79723602,87.579,87.526,3.74553926]
[1772776308200,6.83079019,87.57,87.526,3.74553926]
[1772776308603,3.79723602,87.57,87.526,3.74553926]
[1772776309903,10.277,87.569,87.526,3.74553926]
[1772776311003,10.276,87.577,87.527,3.74553926]
[1772776311304,3.79723602,87.582,87.531,3.74553926]
[1772776312903,3.79723602,87.582,87.535,3.74553926]
[1772776313507,3.03355417,87.59,87.544,3.74553926]
[1772776313699,10.274,87.593,87.551,3.74553926]
[1772776314406,10.275,87.586,87.551,3.74553926]
[1772776316006,3.79723602,87.583,87.54,3.03355417]
[1772776316214,3.79723602,87.583,87.541,3.74553926]
[1772776319916,3.79391775,87.579,87.541,3.74553926]
[1772776321117,3.79391775,87.569,87.52,3.03355417]
[1772776321417,3.79391775,87.569,87.519,3.92034587]
[1772776322418,3.79391775,87.567,87.522,3.92034587]
[1772776322613,3.79391775,87.567,87.53,3.03355417]
[1772776323017,10.275,87.583,87.54,3.92034587]
[1772776323319,3.79391775,87.649,87.571,3.92034587]
[1772776323520,10.264,87.677,87.621,3.97212576]
[1772776324016,3.03355417,87.67,87.621,3.97212576]
[1772776325014,3.03355417,87.68,87.63,3.03355417]
[1772776325317,10.263,87.688,87.631,4.01240115]
[1772776326717,10.263,87.688,87.64,3.03355417]
[1772776327111,3.03355417,87.69,87.64,3.03355417]
[1772776329617,10.261,87.699,87.65,3.03355417]
[1772776329819,3.03355417,87.71,87.651,4.01820235]
[1772776330409,3.03355417,87.72,87.661,4.01820235]
[1772776330714,3.03355417,87.73,87.671,4.01820235]
[1772776331313,10.258,87.728,87.671,4.01820235]
[1772776331913,10.258,87.728,87.68,7.05160066]
[1772776332111,13.29055417,87.74,87.681,4.01804649]
[1772776332515,3.03355417,87.73,87.681,4.01804649]
[1772776332714,0.03690712,87.728,87.681,4.01804649]
[1772776334322,3.03355417,87.72,87.681,4.01804649]
[1772776335025,0.03690712,87.728,87.681,4.01804649]
[1772776336820,0.03690712,87.728,87.609,159.792]
[1772776336821,1.98427406,87.761,87.691,4.0034474]
[1772776337026,3.02477098,87.75,87.701,4.0034474]
[1772776339830,3.02477098,87.74,87.687,4.04691806]
[1772776340029,3.02477098,87.72,87.672,4.04691806]
[1772776340230,3.02477098,87.71,87.672,4.04691806]
[1772776341431,3.02477098,87.71,87.597,20.547]
[1772776341432,3.02477098,87.69,87.654,4.04276671]
[1772776341831,3.02477098,87.7,87.654,4.04276671]
[1772776343732,3.02477098,87.71,87.661,4.04912991]
[1772776344035,10.258,87.729,87.671,4.04912991]
[1772776345725,10.258,87.729,87.672,10.264]
[1772776345931,10.258,87.729,87.673,4.05189174]
[1772776346338,10.259,87.72,87.673,4.05189174]
[1772776352335,7.56141222,87.71,87.644,4.06014034]
[1772776353946,10.261,87.701,87.646,4.06938902]
[1772776355241,10.261,87.701,87.648,10.267]
[1772776355445,10.261,87.701,87.649,4.07383674]
[1772776355645,20.511,87.753,87.649,4.07383674]
[1772776355646,7.56141222,87.73,87.649,4.07383674]
[1772776355841,7.56141222,87.71,87.634,4.07383674]
[1772776356040,7.56141222,87.69,87.591,4.07383674]
[1772776356740,7.56141222,87.71,87.624,4.07383674]
[1772776358246,10.262,87.698,87.633,4.07034794]
[1772776358550,7.56141222,87.71,87.633,4.07034794]
[1772776359143,10.263,87.689,87.635,4.15567097]
[1772776360748,10.263,87.689,87.637,4.14955916]
[1772776361550,10.263,87.689,87.641,4.14955916]
[1772776361757,10.262,87.698,87.641,4.14955916]
[1772776362754,10.262,87.698,87.643,4.14442741]
[1772776364752,10.262,87.69,87.643,4.14442741]
[1772776366458,13.28932677,87.69,87.643,4.14442741]
[1772776367660,3.02732677,87.67,87.617,4.15551757]
[1772776367960,3.02732677,87.66,87.617,4.15551757]
[1772776369451,3.02732677,87.67,87.621,4.1017795]
[1772776369656,3.02732677,87.68,87.621,4.1017795]
[1772776370853,13.29132677,87.68,87.626,4.1021179]
[1772776371760,13.29132677,87.68,87.631,4.1021179]
[1772776371960,13.29132677,87.68,87.572,20.553]
[1772776371961,10.263,87.689,87.641,4.1021179]
[1772776372954,3.02732677,87.68,87.63,10.269]
[1772776373160,3.02732677,87.67,87.63,10.269]
[1772776373357,3.02732677,87.68,87.63,10.269]
[1772776373559,3.02732677,87.68,87.631,4.10192695]
[1772776374060,10.264,87.678,87.633,4.10192695]
[1772776374566,3.02732677,87.69,87.635,4.10192695]
[1772776375662,10.263,87.688,87.635,14.37092695]
[1772776375862,3.02732677,87.68,87.636,4.10233292]
[1772776376864,3.02732677,87.68,87.638,4.10200853]
[1772776377165,3.02732677,87.67,87.622,4.10200853]
[1772776378064,3.02732677,87.67,87.627,4.10200853]
[1772776378258,10.264,87.678,87.627,4.10200853]
[1772776379463,10.264,87.678,87.628,10.27]
[1772776379665,10.264,87.678,87.629,4.10538793]
[1772776380966,3.02732677,87.68,87.634,4.11352997]
[1772776381561,10.264,87.679,87.634,4.11352997]
[1772776382668,3.02732677,87.68,87.635,4.11352997]
[1772776384371,3.02732677,87.68,87.638,14.38135334]
[1772776384669,3.02732677,87.68,87.639,4.11335334]
[1772776385272,10.263,87.687,87.639,4.11335334]
[1772776390675,3.02732677,87.69,87.642,4.13059721]
[1772776392575,3.02732677,87.68,87.642,4.13059721]
[1772776392771,0.15325754,87.679,87.62,3.02732677]
[1772776392976,0.15325754,87.659,87.613,3.92734163]
[1772776393482,0.15325754,87.679,87.621,3.92734163]
[1772776394175,20.521,87.71,87.621,3.92734163]
[1772776394176,0.15325754,87.676,87.621,3.92734163]
[1772776394379,0.15325754,87.669,87.621,3.92734163]
[1772776395280,0.43188897,87.662,87.621,3.92734163]
[1772776398377,10.265,87.671,87.621,3.92734163]
[1772776398577,0.52560341,87.675,87.623,3.89568478]
[1772776399389,0.52560341,87.675,87.631,3.89568478]
[1772776400897,0.44669991,87.674,87.631,3.89568478]
[1772776401695,0.44669991,87.674,87.618,3.89568478]
[1772776401696,3.02839489,87.67,87.618,3.89568478]
[1772776401894,0.44669991,87.669,87.618,3.89568478]
[1772776402296,0.44669991,87.669,87.62,3.02839489]
[1772776402491,0.44669991,87.669,87.621,3.89568478]
[1772776403792,10.265,87.664,87.621,3.89568478]
[1772776404499,10.70439039,87.664,87.621,3.89568478]
[1772776404699,0.43939039,87.663,87.621,3.89568478]
[1772776404900,10.266,87.66,87.621,3.89568478]
[1772776406401,10.267,87.655,87.621,3.89568478]
[1772776406600,3.02839489,87.67,87.61,3.02839489]
[1772776406601,0.44969154,87.654,87.61,3.02839489]
[1772776407398,10.268,87.645,87.608,3.89568478]
[1772776407900,10.268,87.641,87.608,3.89568478]
[1772776408101,0.42948647,87.64,87.591,3.89568478]
[1772776409703,0.41657085,87.635,87.58,3.02839489]
[1772776409892,0.41657085,87.635,87.581,3.79568497]
[1772776410905,0.41657085,87.635,87.591,3.82720752]
[1772776411301,0.35799986,87.648,87.601,3.82720752]
[1772776412796,10.268,87.641,87.601,3.82720752]
[1772776415598,10.269,87.634,87.601,3.82720752]
[1772776415805,0.371704,87.633,87.582,3.82035545]
[1772776416005,20.531,87.668,87.518,20.566]
[1772776416006,0.371704,87.629,87.57,6.84875034]
[1772776416306,0.371704,87.629,87.571,3.82035545]
[1772776416804,10.272,87.611,87.571,3.82035545]
[1772776417906,10.67627965,87.611,87.571,3.82035545]
[1772776418902,0.40222113,87.606,87.56,3.02839489]
[1772776419102,0.40222113,87.606,87.56,6.83349178]
[1772776419307,0.40222113,87.606,87.561,3.80509689]
[1772776419911,10.273,87.604,87.561,3.80509689]
[1772776425415,3.63748704,87.691,87.571,3.70987581]
[1772776425615,3.63748704,87.691,87.64,3.02839489]
[1772776425920,3.63748704,87.689,87.63,3.02839489]
[1772776426222,3.63748704,87.668,87.611,3.70987581]
[1772776426418,3.63748704,87.668,87.63,3.02839489]
[1772776426619,3.63748704,87.685,87.64,3.02839489]
[1772776427815,3.63748704,87.685,87.631,3.70987581]
[1772776427816,3.63748704,87.685,87.65,3.02839489]
[1772776428719,3.63748704,87.709,87.65,3.02839489]
[1772776429016,3.63748704,87.709,87.577,159.849]
[1772776429017,3.63748704,87.752,87.7,3.02839489]
[1772776429215,3.63748704,87.779,87.72,3.02839489]
[1772776429419,3.63748704,87.779,87.66,159.698]
[1772776429420,3.63748704,87.779,87.73,3.02839489]
[1772776429713,3.63748704,87.779,87.74,3.02839489]
[1772776429919,3.63748704,87.779,87.73,3.02839489]
[1772776430312,3.63748704,87.779,87.74,3.02839489]
[1772776430919,3.63748704,87.799,87.75,3.02839489]
[1772776431612,13.88748704,87.797,87.75,3.02839489]
[1772776431818,3.63748704,87.796,87.75,3.02839489]
[1772776432524,3.63748704,87.796,87.736,3.70987581]
[1772776432818,3.63748704,87.814,87.741,3.70987581]
[1772776433222,3.63748704,87.814,87.746,3.70987581]
[1772776433730,7.54950378,87.85,87.71,7.54950378]
[1772776433731,3.63748704,87.832,87.761,3.70987581]
[1772776434819,10.246,87.83,87.761,3.70987581]
[1772776435019,3.63748704,87.832,87.761,3.70987581]
[1772776435219,3.63748704,87.856,87.761,3.70987581]
[1772776435826,3.63748704,87.844,87.765,3.70987581]
[1772776436326,3.63748704,87.842,87.765,3.70987581]
[1772776437125,3.63748704,87.832,87.765,3.70987581]
[1772776438626,3.63748704,87.845,87.765,3.70987581]
[1772776439226,13.88248704,87.841,87.768,3.70987581]
[1772776439526,3.63748704,87.84,87.768,3.70987581]
[1772776439728,10.245,87.839,87.768,3.70987581]
[1772776440821,1.98185013,87.867,87.768,3.70987581]
[1772776440822,3.96423832,87.826,87.768,3.70987581]
[1772776441922,3.96423832,87.823,87.768,3.70987581]
[1772776442626,10.246,87.83,87.768,3.70987581]
[1772776443327,3.96423832,87.822,87.768,3.70987581]
[1772776444626,3.96423832,87.849,87.768,3.70987581]
[1772776445027,3.96423832,87.821,87.768,3.70987581]
[1772776445325,3.96423832,87.849,87.768,3.70987581]
[1772776445830,3.96423832,87.83,87.771,3.98892407]
[1772776446637,3.96423832,87.816,87.741,3.98892407]
[1772776447933,3.96423832,87.816,87.744,3.98892407]
[1772776448338,3.96423832,87.814,87.747,3.98892407]
[1772776448938,3.96423832,87.808,87.747,3.98892407]
[1772776449733,3.96423832,87.8,87.725,3.98892407]
[1772776450233,3.96423832,87.8,87.675,20.529]
[1772776450234,3.96423832,87.817,87.727,3.98892407]
[1772776451140,3.96423832,87.794,87.736,3.98892407]
[1772776451934,10.251,87.787,87.736,3.98892407]
[1772776452335,10.25,87.798,87.736,3.98892407]
[1772776453141,3.96423832,87.808,87.748,3.98892407]
[1772776453738,3.96423832,87.829,87.748,3.98892407]
[1772776454940,10.249,87.806,87.751,3.98892407]
[1772776455940,3.96423832,87.811,87.756,3.98892407]
[1772776456348,3.96423832,87.811,87.764,3.98892407]
[1772776456546,10.248,87.81,87.764,3.98892407]
[1772776457546,3.96423832,87.811,87.764,3.98892407]
[1772776458748,3.96423832,87.811,87.765,10.254]
[1772776458954,3.96423832,87.811,87.765,14.24292407]
[1772776459147,3.96423832,87.811,87.74,7.54950378]
[1772776459148,3.96423832,87.811,87.766,3.98892407]
[1772776459347,7.54950378,87.85,87.768,3.98892407]
[1772776459348,3.96423832,87.826,87.768,3.98892407]
[1772776460345,3.96423832,87.823,87.741,3.98892407]
[1772776460950,3.96423832,87.82,87.766,10.253]
[1772776461654,3.96423832,87.82,87.771,3.98892407]
[1772776461855,3.96423832,87.849,87.771,3.98892407]
[1772776462252,3.96423832,87.827,87.773,3.98892407]
[1772776464047,4.94224965,87.866,87.773,3.98892407]
[1772776464256,4.94224965,87.866,87.78,7.54770212]
[1772776464756,4.94224965,87.866,87.814,10.248]
[1772776465557,4.94224965,87.866,87.81,3.98892407]
[1772776465956,3.96423832,87.864,87.81,3.98892407]
[1772776467056,14.20623832,87.863,87.81,3.98892407]
[1772776467457,14.20623832,87.863,87.767,20.507]
[1772776467458,1.981348,87.897,87.813,3.98892407]
[1772776467664,3.96423832,87.878,87.813,3.98892407]
[1772776468368,3.96423832,87.878,87.8,7.54770212]